bitfinex-derivatives/quotes_BTCF0:USTF0_20250827
["timestamp","ask_amount","ask_price","bid_price","bid_amount"]
[1756270227324,0.9177436,111720.0,111710.0,1.30288199]
[1756270227824,0.9177436,111720.0,111710.0,1.19038573]
[1756270228225,0.9177436,111720.0,111710.0,0.8440913]
[1756270228424,0.9177436,111720.0,111710.0,1.19038573]
[1756270229124,0.9177436,111720.0,111710.0,1.30287374]
[1756270230121,0.9177436,111720.0,111710.0,0.95657931]
[1756270230330,0.9177436,111720.0,111710.0,1.30287374]
[1756270231326,0.9177436,111720.0,111710.0,1.19038573]
[1756270231629,0.9177436,111720.0,111710.0,1.19138573]
[1756270233327,0.9164236,111720.0,111710.0,1.19138573]
[1756270233530,0.9164236,111720.0,111710.0,0.8450913]
[1756270233725,0.9164236,111720.0,111710.0,1.19138573]
[1756270234023,0.0895036,111720.0,111710.0,1.19138573]
[1756270234236,0.9160236,111720.0,111710.0,1.19138573]
[1756270235027,0.9160236,111720.0,111710.0,0.8450913]
[1756270235326,0.9160236,111720.0,111710.0,0.75558]
[1756270235928,0.9160236,111720.0,111710.0,0.86806801]
[1756270236228,1.51231803,111720.0,111710.0,0.17883801]
[1756270236732,2.21941246,111720.0,111710.0,0.08133632]
[1756270237530,2.52941246,111720.0,111710.0,0.08133632]
[1756270237726,2.55941246,111720.0,111710.0,0.08133632]
[1756270237938,2.55941246,111720.0,111710.0,0.08033632]
[1756270238324,2.53941246,111720.0,111710.0,0.08033632]
[1756270238528,2.57941246,111720.0,111710.0,0.08033632]
[1756270238731,2.58941246,111720.0,111710.0,0.08033632]
[1756270238925,2.56941246,111720.0,111710.0,0.08033632]
[1756270239230,2.53941246,111720.0,111710.0,0.08033632]
[1756270239424,2.53941246,111720.0,111710.0,0.04291172]
[1756270239625,0.0895193,111700.0,111690.0,0.15965666]
[1756270239821,1.64401409,111700.0,111690.0,0.13046666]
[1756270240421,1.64401409,111700.0,111690.0,0.01797865]
[1756270241129,1.64401409,111700.0,111690.0,0.04716865]
[1756270241327,1.64401409,111700.0,111690.0,0.15965666]
[1756270241727,1.64401409,111700.0,111690.0,0.04716865]
[1756270242124,1.64401409,111700.0,111690.0,0.06218865]
[1756270242830,1.29771966,111700.0,111690.0,0.06218865]
[1756270243030,1.64401409,111700.0,111690.0,0.06218865]
[1756270243432,1.64401409,111700.0,111690.0,0.04716865]
[1756270243632,1.64401409,111700.0,111690.0,0.06218865]
[1756270243932,1.64401409,111700.0,111690.0,0.08422865]
[1756270244733,0.47031966,111700.0,111690.0,0.16222865]
[1756270245032,1.64425409,111700.0,111690.0,0.16222865]
[1756270245231,1.28345409,111700.0,111690.0,0.16222865]
[1756270245432,1.28345409,111700.0,111690.0,0.12796865]
[1756270245633,1.28345409,111700.0,111690.0,0.16222865]
[1756270246033,0.93743966,111700.0,111690.0,0.25175595]
[1756270246234,1.28373409,111700.0,111690.0,0.25175595]
[1756270247134,0.93743966,111700.0,111690.0,0.25175595]
[1756270247334,0.93727966,111700.0,111690.0,0.25175595]
[1756270248941,0.93727966,111700.0,111690.0,0.16222865]
[1756270249544,1.28357409,111700.0,111690.0,0.13791865]
[1756270249736,1.28357409,111700.0,111690.0,0.08422865]
[1756270250243,1.28357409,111700.0,111690.0,0.06625]
[1756270250542,1.28357409,111700.0,111690.0,0.04421]
[1756270251443,1.28357409,111700.0,111690.0,0.02919]
[1756270251846,1.63357409,111700.0,111690.0,0.02919]
[1756270252047,0.089527,111690.0,111680.0,0.14167801]
[1756270252238,0.43582143,111690.0,111680.0,0.02919]
[1756270252434,0.089535,111680.0,111670.0,0.15965378]
[1756270252638,1.26338943,111680.0,111670.0,0.15965378]
[1756270252847,1.26338943,111680.0,111670.0,0.19671378]
[1756270253047,1.26338943,111680.0,111670.0,0.25528378]
[1756270253551,1.29043059,111680.0,111670.0,0.27471378]
[1756270253849,1.28943059,111680.0,111670.0,0.27471378]
[1756270254250,1.36017565,111680.0,111670.0,0.27471378]
[1756270254451,1.36017565,111680.0,111670.0,0.27671378]
[1756270254946,1.36017565,111680.0,111670.0,0.16622577]
[1756270256651,1.37984266,111680.0,111670.0,0.05116577]
[1756270256850,1.72613709,111680.0,111670.0,0.05116577]
[1756270257047,1.69984266,111680.0,111670.0,0.05116577]
[1756270257256,2.66693709,111680.0,111670.0,0.004]
[1756270257644,0.0895431,111670.0,111660.0,0.02919]
[1756270257947,0.79663753,111670.0,111660.0,0.02919]
[1756270259551,1.2778631,111670.0,111660.0,0.14425]
[1756270259750,1.62415753,111670.0,111660.0,0.06625]
[1756270259951,1.62415753,111670.0,111660.0,0.04421]
[1756270260150,1.62415753,111670.0,111660.0,0.02919]
[1756270260346,0.0895511,111660.0,111650.0,0.40501]
[1756270260552,0.43584553,111660.0,111650.0,0.50505]
[1756270261148,0.45598942,111660.0,111650.0,0.08568]
[1756270261354,0.45598942,111660.0,111650.0,0.06625]
[1756270262347,0.45598942,111660.0,111650.0,0.02919]
[1756270262853,0.81678942,111660.0,111650.0,0.02919]
[1756270263454,0.81678942,111660.0,111650.0,0.04521]
[1756270264961,1.64438942,111660.0,111650.0,0.06725]
[1756270265859,1.64438942,111660.0,111650.0,0.14525]
[1756270266358,1.64438942,111660.0,111650.0,0.04521]
[1756270266558,1.64438942,111660.0,111650.0,0.12419]
[1756270267360,1.64438942,111660.0,111650.0,0.1422]
[1756270267561,1.64438942,111660.0,111650.0,0.10803]
[1756270268255,1.64438942,111660.0,111650.0,0.08427]
[1756270268663,1.64438942,111660.0,111650.0,0.1422]
[1756270269061,1.64438942,111660.0,111650.0,0.06626]
[1756270270062,1.64438942,111660.0,111650.0,0.10043]
[1756270270260,1.64438942,111660.0,111650.0,0.06626]
[1756270270864,1.64414942,111660.0,111650.0,0.10043]
[1756270271265,1.64414942,111660.0,111650.0,0.06626]
[1756270271960,1.64414942,111660.0,111650.0,0.04521]
[1756270272763,1.64414942,111660.0,111650.0,0.06626]
[1756270275162,1.64414942,111660.0,111650.0,0.03019]
[1756270275364,1.64414942,111660.0,111650.0,0.04547]
[1756270277966,1.64414942,111660.0,111650.0,0.03019]
[1756270278362,1.29785499,111660.0,111650.0,0.0282]
[1756270278671,1.64414942,111660.0,111650.0,0.0282]
[1756270279867,1.64414942,111660.0,111650.0,0.04348]
[1756270280268,1.64414942,111660.0,111650.0,0.04248]
[1756270280570,1.64414942,111660.0,111650.0,0.0272]
[1756270280770,1.64414942,111660.0,111650.0,0.04248]
[1756270280965,1.64414942,111660.0,111650.0,0.0272]
[1756270281465,2.01414942,111660.0,111650.0,0.0272]
[1756270281666,1.64434942,111660.0,111650.0,0.06353]
[1756270282169,0.81678942,111660.0,111650.0,0.13947]
[1756270282370,1.64438942,111660.0,111650.0,0.13947]
[1756270282771,1.64446942,111660.0,111650.0,0.13947]
[1756270282970,1.29817499,111660.0,111650.0,0.13947]
[1756270283173,1.64446942,111660.0,111650.0,0.13947]
[1756270285670,0.81678942,111660.0,111650.0,0.13947]
[1756270285876,1.64494942,111660.0,111650.0,0.13947]
[1756270286374,1.28414942,111660.0,111650.0,0.13947]
[1756270287977,0.93757499,111660.0,111650.0,0.73576443]
[1756270288876,0.93757499,111660.0,111650.0,1.09656443]
[1756270289078,0.93757499,111660.0,111650.0,1.18612163]
[1756270289873,0.93757499,111660.0,111650.0,0.8398272]
[1756270290074,0.93757499,111660.0,111650.0,0.75027]
[1756270291579,0.10969499,111660.0,111650.0,0.75027]
[1756270291779,0.93805499,111660.0,111650.0,0.75027]
[1756270292276,1.28434942,111660.0,111650.0,0.75027]
[1756270292675,1.28434942,111660.0,111650.0,0.50027]
[1756270292881,1.28434942,111660.0,111650.0,0.13947]
[1756270297580,1.28434942,111660.0,111650.0,0.0272]
[1756270298079,1.28434942,111660.0,111650.0,0.04349]
[1756270299180,1.53434942,111660.0,111650.0,0.0272]
[1756270300685,1.53434942,111660.0,111650.0,0.06572]
[1756270300982,1.28366942,111660.0,111650.0,0.14266]
[1756270301485,0.45698942,111660.0,111650.0,0.14266]
[1756270301783,1.28446942,111660.0,111650.0,0.14266]
[1756270302183,1.28546942,111660.0,111650.0,0.14266]
[1756270305487,0.93869499,111660.0,111650.0,0.14266]
[1756270306186,0.11169499,111660.0,111650.0,0.14266]
[1756270306387,0.93893499,111660.0,111650.0,0.14266]
[1756270306982,1.28522942,111660.0,111650.0,0.14266]
[1756270307183,1.28522942,111660.0,111650.0,0.75346]
[1756270307184,0.11169499,111660.0,111650.0,0.75346]
[1756270307386,0.11169499,111660.0,111650.0,1.18931113]
[1756270307689,0.93889499,111660.0,111650.0,1.18931113]
[1756270308683,0.11069499,111660.0,111650.0,1.18931113]
[1756270308890,0.93769499,111660.0,111650.0,1.18931113]
[1756270309089,0.93669499,111660.0,111650.0,1.18931113]
[1756270309286,0.02014389,111660.0,111650.0,1.18931113]
[1756270309991,0.20699073,111680.0,111670.0,0.1755807]
[1756270310291,1.03439073,111680.0,111670.0,0.70779784]
[1756270312695,1.03439073,111680.0,111670.0,0.5950807]
[1756270314495,1.03395073,111680.0,111670.0,0.5950807]
[1756270316089,1.03391073,111680.0,111670.0,0.5950807]
[1756270317010,0.20699073,111680.0,111670.0,0.5950807]
[1756270317210,1.03391073,111680.0,111670.0,0.5950807]
[1756270317806,1.03391073,111680.0,111670.0,0.70779784]
[1756270318209,1.03387073,111680.0,111670.0,0.70779784]
[1756270318409,0.20699073,111680.0,111670.0,0.70779784]
[1756270318610,1.03387073,111680.0,111670.0,0.5950807]
[1756270319412,1.03387073,111680.0,111670.0,0.70779784]
[1756270322215,0.20699073,111680.0,111670.0,0.70779784]
[1756270322408,1.03383073,111680.0,111670.0,0.70779784]
[1756270323413,1.38012516,111680.0,111670.0,0.11271714]
[1756270323915,1.38012516,111680.0,111670.0,0.02928]
[1756270324820,0.55328516,111680.0,111670.0,0.02928]
[1756270325116,1.38012516,111680.0,111670.0,0.04557]
[1756270327919,1.38012516,111680.0,111670.0,0.0678]
[1756270328216,1.38012516,111680.0,111670.0,0.1434]
[1756270328612,0.55328516,111680.0,111670.0,0.2329409]
[1756270328916,1.38008516,111680.0,111670.0,0.2329409]
[1756270329716,1.38008516,111680.0,111670.0,0.1573409]
[1756270329918,1.38008516,111680.0,111670.0,0.1351109]
[1756270330712,1.38008516,111680.0,111670.0,0.1568109]
[1756270331313,0.55328516,111680.0,111670.0,0.1756309]
[1756270331517,1.38008516,111680.0,111670.0,0.2329909]
[1756270332116,1.38008516,111680.0,111670.0,0.1188209]
[1756270332305,1.38008516,111680.0,111670.0,0.1749709]
[1756270332610,1.38008516,111680.0,111670.0,0.2323309]
[1756270332811,1.38008516,111680.0,111670.0,0.1561509]
[1756270333520,1.38008516,111680.0,111670.0,0.2323309]
[1756270334016,1.38008516,111680.0,111670.0,0.04491]
[1756270334222,1.38008516,111680.0,111670.0,0.02928]
[1756270334521,1.03379073,111680.0,111670.0,0.04491]
[1756270334721,1.03379073,111680.0,111670.0,0.06661]
[1756270334910,1.38008516,111680.0,111670.0,0.06661]
[1756270335522,0.55328516,111680.0,111670.0,0.1095]
[1756270335720,1.38008516,111680.0,111670.0,0.14279]
[1756270335924,0.20699073,111680.0,111670.0,0.2323308]
[1756270336112,1.38008516,111680.0,111670.0,0.2323308]
[1756270336316,1.38008516,111680.0,111670.0,0.5931308]
[1756270336824,1.03379073,111680.0,111670.0,0.5931308]
[1756270337422,1.03383073,111680.0,111670.0,0.5931308]
[1756270337622,1.03383073,111680.0,111670.0,0.70584794]
[1756270337924,1.03383073,111680.0,111670.0,0.5931308]
[1756270339617,0.20699073,111680.0,111670.0,0.5931308]
[1756270339822,1.03375073,111680.0,111670.0,0.93942523]
[1756270340121,0.82676,111680.0,111670.0,0.93942523]
[1756270340323,0.9162979,111680.0,111670.0,0.93942523]
[1756270341326,0.74537496,111680.0,111670.0,0.93942523]
[1756270342223,0.9162979,111680.0,111670.0,0.93942523]
[1756270342428,0.9364732,111680.0,111670.0,0.93942523]
[1756270342630,0.9364732,111680.0,111670.0,0.5931308]
[1756270342824,0.1097132,111680.0,111670.0,0.5931308]
[1756270343128,0.0895326,111680.0,111670.0,1.05225315]
[1756270343332,0.9162926,111680.0,111670.0,1.05225315]
[1756270343627,0.9162926,111680.0,111670.0,0.5931308]
[1756270343829,0.9162926,111680.0,111670.0,0.93942523]
[1756270344031,0.93705143,111680.0,111670.0,0.93942523]
[1756270344224,1.00910721,111680.0,111670.0,0.93942523]
[1756270344425,0.18234721,111680.0,111670.0,0.5931308]
[1756270344626,1.00910721,111680.0,111670.0,0.93942523]
[1756270345032,1.00910721,111680.0,111670.0,0.5931308]
[1756270345332,1.00910721,111680.0,111670.0,0.93942523]
[1756270345531,1.00910721,111680.0,111670.0,0.50359]
[1756270345730,1.35540164,111680.0,111670.0,0.4703]
[1756270345932,1.35540164,111680.0,111670.0,0.50359]
[1756270346433,1.35540164,111680.0,111670.0,0.4703]
[1756270346735,1.35540164,111680.0,111670.0,0.42741]
[1756270349841,1.35540164,111680.0,111670.0,0.1420652]
[1756270350045,1.6255131,111680.0,111670.0,0.1127852]
[1756270350638,2.68260753,111680.0,111670.0,0.1127852]
[1756270351136,2.33260753,111680.0,111670.0,0.1127852]
[1756270351539,0.0895409,111670.0,111660.0,0.5359412]
[1756270351737,0.43583533,111670.0,111660.0,0.5359412]
[1756270351939,0.43583533,111670.0,111660.0,0.6150012]
[1756270352129,0.43583533,111670.0,111660.0,0.6338212]
[1756270352738,0.43683533,111670.0,111660.0,0.6338212]
[1756270353238,0.43683533,111670.0,111660.0,0.521036]
[1756270353839,0.43783533,111670.0,111660.0,0.521036]
[1756270354738,1.26455533,111670.0,111660.0,0.521036]
[1756270355540,0.43783533,111670.0,111660.0,0.521036]
[1756270355740,1.26455533,111670.0,111660.0,0.521036]
[1756270356040,0.43783533,111670.0,111660.0,0.521036]
[1756270356239,1.26455533,111670.0,111660.0,0.521036]
[1756270358338,0.43783533,111670.0,111660.0,0.521036]
[1756270358543,1.26459533,111670.0,111660.0,0.521036]
[1756270358945,1.26459533,111670.0,111660.0,0.50301]
[1756270360043,0.43783533,111670.0,111660.0,0.50301]
[1756270360342,1.26499533,111670.0,111660.0,0.02825]
[1756270360544,1.87579533,111670.0,111660.0,0.02825]
[1756270360745,0.0895489,111660.0,111650.0,0.5188952]
[1756270361044,0.0895489,111660.0,111650.0,0.40611]
[1756270361045,0.45394573,111660.0,111650.0,0.40611]
[1756270361839,0.45394573,111660.0,111650.0,0.5188952]
[1756270362143,0.45494573,111660.0,111650.0,0.5418052]
[1756270362341,0.45594573,111660.0,111650.0,0.2158452]
[1756270362541,0.45594573,111660.0,111650.0,0.2568352]
[1756270362845,0.45594573,111660.0,111650.0,0.14405]
[1756270365243,1.28282573,111660.0,111650.0,0.14405]
[1756270366746,0.9365313,111660.0,111650.0,0.14405]
[1756270366943,1.28282573,111660.0,111650.0,0.14405]
[1756270367650,1.28310573,111660.0,111650.0,0.14405]
[1756270377454,0.9368113,111660.0,111650.0,0.14405]
[1756270377653,1.28310573,111660.0,111650.0,0.14405]
[1756270381352,0.9368113,111660.0,111650.0,0.14405]
[1756270381552,1.28310573,111660.0,111650.0,0.14405]
[1756270383356,1.28310573,111660.0,111650.0,0.2568352]
[1756270383750,1.28310573,111660.0,111650.0,0.14405]
[1756270384156,0.9368113,111660.0,111650.0,0.14405]
[1756270384352,1.28310573,111660.0,111650.0,0.14405]
[1756270385356,1.28310573,111660.0,111650.0,0.2568352]
[1756270387260,1.28310573,111660.0,111650.0,0.1990252]
[1756270387559,1.28310573,111660.0,111650.0,0.1415452]
[1756270389960,1.53310573,111660.0,111650.0,0.1127852]
[1756270390155,0.0895566,111650.0,111640.0,0.55982017]
[1756270390355,0.43585103,111650.0,111640.0,0.58239017]
[1756270390665,0.43585103,111650.0,111640.0,0.63395886]
[1756270392563,0.43585103,111650.0,111640.0,0.63495886]
[1756270394858,0.43585103,111650.0,111640.0,0.60335886]
[1756270395062,0.43585103,111650.0,111640.0,0.52208497]
[1756270395466,0.25466267,111650.0,111640.0,0.63495886]
[1756270395663,0.34421927,111650.0,111640.0,0.63495886]
[1756270395964,1.17101927,111650.0,111640.0,0.52208497]
[1756270396164,0.0895566,111650.0,111640.0,0.52208497]
[1756270396367,1.26265103,111650.0,111640.0,0.52208497]
[1756270396562,0.9163566,111650.0,111640.0,0.52208497]
[1756270398366,0.9163166,111650.0,111640.0,0.52208497]
[1756270399365,0.0895566,111650.0,111640.0,0.52208497]
[1756270399562,0.9163166,111650.0,111640.0,0.52208497]
[1756270399769,0.9163166,111650.0,111640.0,0.8683794]
[1756270400868,0.9163166,111650.0,111640.0,0.52208497]
[1756270403477,1.17636245,111650.0,111640.0,0.78213082]
[1756270404471,0.34960245,111650.0,111640.0,0.78213082]
[1756270404773,1.17636245,111650.0,111640.0,0.78213082]
[1756270405371,1.17636245,111650.0,111640.0,0.52208497]
[1756270405567,1.17636245,111650.0,111640.0,0.89500471]
[1756270407677,1.17636245,111650.0,111640.0,0.52208497]
[1756270407873,0.34960245,111650.0,111640.0,0.78213082]
[1756270408078,1.17632245,111650.0,111640.0,0.78213082]
[1756270409883,1.17632245,111650.0,111640.0,0.52208497]
[1756270410070,1.17632245,111650.0,111640.0,0.78213082]
[1756270410576,1.17632245,111650.0,111640.0,0.52208497]
[1756270410879,1.17632245,111650.0,111640.0,0.63492377]
[1756270411976,1.4363683,111650.0,111640.0,0.53762377]
[1756270412483,1.4363683,111650.0,111640.0,0.1138388]
[1756270413072,1.6863683,111650.0,111640.0,0.1434988]
[1756270413374,2.0471683,111650.0,111640.0,0.1138388]
[1756270413579,2.0471683,111650.0,111640.0,0.001]
[1756270413782,0.0895646,111640.0,111630.0,0.1424988]
[1756270413976,0.86970215,111640.0,111630.0,0.1128388]
[1756270414183,0.6096563,111640.0,111630.0,0.1128388]
[1756270414475,0.6096563,111640.0,111620.0,0.5413188]
[1756270414476,0.0895727,111630.0,111620.0,0.5413188]
[1756270414676,1.17629855,111630.0,111620.0,0.6160488]
[1756270415172,0.34961855,111630.0,111620.0,0.6160488]
[1756270415372,1.26314912,111630.0,111620.0,0.6160488]
[1756270415775,0.9162127,111630.0,111620.0,0.7056295]
[1756270415971,0.9162127,111630.0,111620.0,0.5927907]
[1756270416380,0.9162127,111630.0,111620.0,0.8427907]
[1756270416883,0.9172127,111630.0,111620.0,0.75321]
[1756270417981,0.9172527,111630.0,111620.0,0.75321]
[1756270418982,1.26414912,111630.0,111620.0,0.75321]
[1756270423789,1.26414912,111630.0,111620.0,0.8660488]
[1756270424486,0.43746912,111630.0,111620.0,0.9556295]
[1756270424685,1.26414912,111630.0,111620.0,0.9556295]
[1756270424885,0.9172527,111630.0,111620.0,0.9556295]
[1756270426689,1.26414912,111630.0,111620.0,0.9556295]
[1756270426891,1.26414912,111630.0,111620.0,0.8660488]
[1756270428195,1.26414912,111630.0,111620.0,0.9556295]
[1756270428692,1.26414912,111630.0,111620.0,0.8660488]
[1756270428889,0.9172527,111630.0,111620.0,0.75321]
[1756270431094,1.26414912,111630.0,111620.0,0.75321]
[1756270431692,1.26414912,111630.0,111620.0,0.8660488]
[1756270432090,0.9172527,111630.0,111620.0,0.8660488]
[1756270432290,1.26414912,111630.0,111620.0,0.75321]
[1756270433494,1.26410912,111630.0,111620.0,0.8427907]
[1756270435387,1.17736121,111630.0,111620.0,1.10293921]
[1756270436693,1.17732121,111630.0,111620.0,1.10293921]
[1756270437098,1.17732121,111630.0,111620.0,0.85293921]
[1756270437398,0.9171727,111630.0,111620.0,0.85293921]
[1756270437689,1.17732121,111630.0,111620.0,0.85293921]
[1756270437892,1.17732121,111630.0,111620.0,0.76335851]
[1756270438289,1.17732121,111630.0,111620.0,0.87619731]
[1756270438795,1.17732121,111630.0,111620.0,0.6160488]
[1756270438992,1.17732121,111630.0,111620.0,0.50321]
[1756270439395,1.17732121,111630.0,111620.0,0.6160488]
[1756270439793,1.17732121,111630.0,111620.0,0.50321]
[1756270440594,1.17732121,111630.0,111620.0,0.6160488]
[1756270440792,1.43746972,111630.0,111620.0,0.5844488]
[1756270440998,1.68746972,111630.0,111620.0,0.39046]
[1756270442098,0.86086972,111630.0,111620.0,0.50465]
[1756270442296,1.68742972,111630.0,111620.0,0.42795]
[1756270442497,1.42728121,111630.0,111620.0,0.39046]
[1756270442896,1.68742972,111630.0,111620.0,0.39046]
[1756270443700,2.04822972,111630.0,111620.0,0.02966]
[1756270445804,1.79822972,111630.0,111620.0,0.02966]
[1756270447206,0.0895807,111620.0,111610.0,0.51864119]
[1756270447404,0.68308291,111620.0,111610.0,0.56317119]
[1756270447705,0.68308291,111620.0,111610.0,0.47226239]
[1756270448005,0.68308291,111620.0,111610.0,0.61800119]
[1756270448505,0.68308291,111620.0,111610.0,0.63711119]
[1756270448706,0.70151208,111620.0,111610.0,0.63711119]
[1756270448907,0.70151208,111620.0,111610.0,0.56032119]
[1756270449108,0.70151208,111620.0,111610.0,0.56132119]
[1756270450210,0.70151208,111620.0,111610.0,0.61686119]
[1756270451011,0.70151208,111620.0,111610.0,0.63597119]
[1756270451412,1.52799208,111620.0,111610.0,0.63597119]
[1756270451606,1.52799208,111620.0,111610.0,0.60307119]
[1756270452006,1.52799208,111620.0,111610.0,0.52313239]
[1756270452507,0.70151208,111620.0,111610.0,0.52313239]
[1756270452710,1.52799208,111620.0,111610.0,0.52313239]
[1756270453306,1.52799208,111620.0,111610.0,0.52213239]
[1756270453513,1.52899208,111620.0,111610.0,0.52213239]
[1756270455912,0.70251208,111620.0,111610.0,0.52213239]
[1756270456113,1.52899208,111620.0,111610.0,0.52213239]
[1756270457614,0.70251208,111620.0,111610.0,0.52213239]
[1756270457911,1.52895208,111620.0,111610.0,0.52213239]
[1756270458212,0.70251208,111620.0,111610.0,0.52213239]
[1756270458413,1.52895208,111620.0,111610.0,0.52213239]
[1756270459215,1.00865506,111620.0,111610.0,0.52213239]
[1756270459415,1.52895208,111620.0,111610.0,0.52213239]
[1756270462810,1.52895208,111620.0,111610.0,0.63497119]
[1756270463716,1.52895208,111620.0,111610.0,0.60207119]
[1756270463918,1.52895208,111620.0,111610.0,0.63497119]
[1756270464616,1.52895208,111620.0,111610.0,0.27417119]
[1756270465313,0.18221506,111620.0,111610.0,1.13405701]
[1756270465610,0.0895736,111630.0,111620.0,0.2307107]
[1756270465818,0.9159336,111630.0,111620.0,1.2245576]
[1756270466014,0.0895736,111630.0,111620.0,1.4745576]
[1756270466213,0.9159336,111630.0,111620.0,1.4745576]
[1756270466515,0.93224938,111630.0,111620.0,1.4745576]
[1756270466717,0.93220938,111630.0,111620.0,1.4745576]
[1756270467218,0.93320938,111630.0,111620.0,1.4745576]
[1756270469418,0.93320938,111630.0,111620.0,1.30104128]
[1756270470118,0.93320938,111630.0,111620.0,0.95426058]
[1756270470417,0.93320938,111630.0,111620.0,1.30104128]
[1756270473821,0.93320938,111630.0,111620.0,1.1882914]
[1756270474022,0.96722938,111630.0,111620.0,1.1882914]
[1756270475120,0.98894938,111630.0,111620.0,0.8415107]
[1756270475321,0.98894938,111630.0,111620.0,1.1882914]
[1756270476224,0.95492938,111630.0,111620.0,1.1882914]
[1756270476624,0.98966938,111630.0,111620.0,1.1882914]
[1756270476824,0.98866938,111630.0,111620.0,1.1882914]
[1756270477023,0.98866938,111630.0,111620.0,1.1892914]
[1756270478925,0.98866938,111630.0,111620.0,1.5171914]
[1756270479124,0.98866938,111630.0,111620.0,1.2028707]
[1756270479326,1.33545008,111630.0,111620.0,1.11329]
[1756270480427,1.34088008,111630.0,111620.0,0.83083]
[1756270480626,1.34088008,111630.0,111620.0,0.76715]
[1756270481332,1.59088008,111630.0,111620.0,0.76715]
[1756270482130,1.59188008,111630.0,111620.0,0.76715]
[1756270483428,1.59188008,111630.0,111620.0,0.40635]
[1756270483732,1.41955976,111630.0,111620.0,0.40535]
[1756270483934,1.50913336,111630.0,111620.0,0.40535]
[1756270485335,1.52578289,111630.0,111620.0,0.40535]
[1756270485732,1.52578289,111630.0,111620.0,0.50078]
[1756270485932,1.52369289,111630.0,111620.0,0.50078]
[1756270486640,1.52578289,111630.0,111620.0,0.50078]
[1756270487734,1.17900219,111630.0,111620.0,0.50078]
[1756270487938,1.52578289,111630.0,111620.0,0.50078]
[1756270488438,1.17900219,111630.0,111620.0,0.50078]
[1756270488642,1.52578289,111630.0,111620.0,0.50078]
[1756270491442,1.43919246,111630.0,111620.0,0.50078]
[1756270493138,1.43919246,111630.0,111620.0,0.51809988]
[1756270493841,1.69938273,111630.0,111620.0,0.51809988]
[1756270494040,1.43919246,111630.0,111620.0,0.51809988]
[1756270494240,1.17900219,111630.0,111620.0,0.51809988]
[1756270494536,1.43919246,111630.0,111620.0,0.51809988]
[1756270495141,1.43919246,111630.0,111620.0,0.58106988]
[1756270495442,1.43919246,111630.0,111620.0,0.61352988]
[1756270495739,0.6793034,111630.0,111620.0,0.58106988]
[1756270496042,1.5029734,111630.0,111620.0,0.61352988]
[1756270496437,1.5050634,111630.0,111620.0,0.58106988]
[1756270496842,1.5050634,111630.0,111620.0,0.53612988]
[1756270497846,1.5050634,111630.0,111620.0,0.51809988]
[1756270498237,1.76525367,111630.0,111620.0,0.51809988]
[1756270498544,1.76525367,111630.0,111620.0,0.14155988]
[1756270498740,0.1159107,111620.0,111610.0,0.51979988]
[1756270498948,0.76210247,111620.0,111610.0,0.51979988]
[1756270500048,0.76210247,111620.0,111610.0,0.54354988]
[1756270500548,0.76210247,111620.0,111610.0,0.58276988]
[1756270500748,0.76210247,111620.0,111610.0,0.61522988]
[1756270501349,0.58872377,111620.0,111610.0,0.61522988]
[1756270501545,0.58872377,111620.0,111610.0,0.51979988]
[1756270501747,0.94952377,111620.0,111610.0,0.15899988]
[1756270501947,1.19952377,111620.0,111610.0,0.02991]
[1756270502148,0.1527488,111610.0,111600.0,0.15899988]
[1756270502448,1.32547064,111610.0,111600.0,0.15899988]
[1756270502751,1.32547064,111610.0,111600.0,0.04625]
[1756270503349,1.32547064,111610.0,111600.0,0.04725]
[1756270504545,1.32547064,111610.0,111600.0,0.03091]
[1756270504747,1.32547064,111610.0,111600.0,0.001]
[1756270504748,2.30627064,111610.0,111600.0,0.001]
[1756270504948,2.65327248,111610.0,111600.0,1.2e-07]
[1756270505149,2.30627064,111610.0,111600.0,1.2e-07]
[1756270505448,1.45055064,111610.0,111600.0,1.2e-07]
[1756270505753,2.25627064,111610.0,111600.0,1.2e-07]
[1756270505951,2.00627064,111610.0,111600.0,1.2e-07]
[1756270506543,2.88399064,111610.0,111600.0,1.2e-07]
[1756270506742,3.70971064,111610.0,111600.0,1.2e-07]
[1756270506948,3.13399064,111610.0,111600.0,1.2e-07]
[1756270507152,3.95971064,111610.0,111600.0,1.2e-07]
[1756270507648,3.13399064,111610.0,111600.0,1.2e-07]
[1756270507951,3.95971064,111610.0,111600.0,1.2e-07]
[1756270508949,3.13399064,111610.0,111600.0,0.02896012]
[1756270509143,3.73975064,111610.0,111600.0,0.02896012]
[1756270510253,3.73766064,111610.0,111600.0,1.2e-07]
[1756270510457,3.94292064,111610.0,111600.0,1.2e-07]
[1756270510856,3.64292064,111610.0,111600.0,0.02896012]
[1756270511154,4.00696064,111610.0,111600.0,0.02896012]
[1756270511458,4.00905064,111610.0,111600.0,0.02896012]
[1756270512156,4.00696064,111610.0,111600.0,1.2e-07]
[1756270512354,3.97292064,111610.0,111600.0,1.2e-07]
[1756270514149,4.31992248,111610.0,111600.0,1.2e-07]
[1756270519659,4.43643443,111610.0,111600.0,1.2e-07]
[1756270527365,4.52365187,111610.0,111600.0,1.2e-07]
[1756270528362,4.16285187,111610.0,111600.0,1.2e-07]
[1756270528662,4.88445187,111610.0,111600.0,1.2e-07]
[1756270531061,4.88601195,111610.0,111600.0,1.2e-07]
[1756270531965,0.1142968,111600.0,111590.0,0.02892012]
[1756270532167,2.43408792,111600.0,111590.0,0.02892012]
[1756270532367,2.48597123,111600.0,111590.0,0.02892012]
[1756270532865,2.48597123,111600.0,111590.0,0.04508012]
[1756270533472,2.48597123,111600.0,111590.0,0.04608012]
[1756270534469,2.48597123,111600.0,111590.0,0.04508012]
[1756270534670,2.48697123,111600.0,111590.0,0.04508012]
[1756270536770,2.48697123,111600.0,111590.0,0.06987012]
[1756270539068,2.48697123,111600.0,111590.0,0.04508012]
[1756270543073,2.12617123,111600.0,111590.0,0.04508012]
[1756270543274,2.48697123,111600.0,111590.0,0.06987012]
[1756270546677,2.48697123,111600.0,111590.0,0.02892012]
[1756270547382,2.48697123,111600.0,111590.0,0.04544012]
[1756270550494,2.48697123,111600.0,111590.0,0.14421012]
[1756270551791,2.48697123,111600.0,111590.0,0.11051012]
[1756270552292,1.31133123,111600.0,111590.0,0.11051012]
[1756270552488,2.22665123,111600.0,111590.0,0.14421012]
[1756270555702,2.22448123,111600.0,111590.0,0.14421012]
[1756270555999,1.87403419,111600.0,111590.0,0.14421012]
[1756270556298,1.92403419,111600.0,111590.0,0.14421012]
[1756270557307,1.92616419,111600.0,111590.0,0.14421012]
[1756270558502,1.10092419,111600.0,111590.0,0.14421012]
[1756270558701,1.92612419,111600.0,111590.0,0.14421012]
[1756270560802,2.18653123,111600.0,111590.0,0.14421012]
[1756270560998,2.18653123,111600.0,111590.0,0.11051012]
[1756270561204,2.48653123,111600.0,111590.0,0.11051012]
[1756270561602,2.48653123,111600.0,111590.0,0.14421012]
[1756270562604,2.22612419,111600.0,111590.0,0.14421012]
[1756270562803,2.22612419,111600.0,111590.0,0.11051012]
[1756270563604,1.40092419,111600.0,111590.0,0.11051012]